fUST/lending_fUST_20241113
["ID","MTS","AMOUNT","RATE_DAILY","PERIOD"]
[342110312,1731449464475,-392.549351,0.00029,7]
[342110313,1731449464490,-217.717957,0.00029,7]
[342110314,1731449464506,-151.0,0.00029,7]
[342110315,1731449464521,-500.0,0.00029041,2]
[342110316,1731449464536,-350.0,0.00029068,5]
[342110317,1731449464551,-160.0,0.00029099,10]
[342110318,1731449464564,-48045.29772736,0.000291,2]
[342110319,1731449464578,-186.8,0.00029164,7]
[342110320,1731449464593,-160.0,0.00029188,18]
[342110321,1731449464608,-1152.0,0.00029195,2]
[342110322,1731449464623,-300.0,0.000292,2]
[342110323,1731449464637,-500.0,0.00029315,2]
[342110324,1731449464651,-153.0,0.00029315,30]
[342110325,1731449464666,-153.0,0.00029315,30]
[342110326,1731449464679,-153.0,0.00029315,30]
[342110327,1731449464695,-600.0,0.00029348,2]
[342110328,1731449464709,-161.628553,0.00029349,2]
[342110329,1731449464725,-153.0,0.0002937,30]
[342110330,1731449464739,-153.0,0.0002937,30]
[342110331,1731449464753,-153.0,0.0002937,30]
[342110332,1731449464768,-153.0,0.0002937,30]
[342110333,1731449464781,-153.0,0.0002937,30]
[342110334,1731449464794,-153.0,0.0002937,30]
[342110335,1731449464808,-153.0,0.0002937,30]
[342110336,1731449464823,-153.0,0.0002937,30]
[342110337,1731449464837,-160.0,0.00029413,19]
[342110338,1731449464928,-158.558,0.00029437,120]
[342110339,1731449464938,-1000.93882528,0.000295,2]
[342110340,1731449464947,-1595.86430485,0.00029533,2]
[342110341,1731449464957,-937.91249878,0.00029589,2]
[342110342,1731449464967,-1309.1,0.00029589,4]
[342110343,1731449464981,-151.9260413,0.00029589,30]
[342110344,1731449464994,-200.42083299,0.00029616,5]
[342110345,1731449465004,-160.0,0.00029638,20]
[342110346,1731449465014,-600.0,0.00029654,2]
[342110347,1731449465025,-160.0,0.00029863,21]
[342110348,1731449465034,-186.8,0.00029882,7]
[342110349,1731449465043,-151.0,0.00029882,7]
[342110350,1731449465052,-4997.36605616,0.000299,2]
[342110351,1731449465065,-600.0,0.0002996,2]
[342110352,1731449465075,-1693.03345606,0.0002999,14]
[342110353,1731449465085,-160.0,0.00029999,10]
[342110354,1731449465094,-17371.20002461,0.0003,21]
[342110355,1731449465103,-219.095,0.0003,30]
[342110356,1731449465112,-159.0,0.0003,2]
[342110357,1731449465121,-391.91546663,0.0003,10]
[342110358,1731449465131,-7949.77848476,0.0003,10]
[342110359,1731449465140,-1500.0,0.0003,2]
[342110360,1731449465149,-1021.89434884,0.0003,7]
[342110361,1731449465159,-11737.3107524,0.0003,15]
[342110362,1731449465168,-735.51014328,0.0003,30]
[342110363,1731449465177,-693.37773192,0.0003,30]
[342110364,1731449465186,-6254.88099802,0.0003,2]
[342110365,1731449465195,-10290.49396728,0.0003,30]
[342110366,1731449465204,-2049.91965107,0.0003,30]
[342110367,1731449465213,-1589.0,0.0003,30]
[342110368,1731449465225,-2511.0,0.0003,2]
[342110369,1731449465234,-992.89833102,0.0003,10]
[342110370,1731449465243,-1061.29295583,0.0003,30]
[342110371,1731449465252,-299.999999,0.0003,30]
[342110372,1731449465262,-5127.0,0.0003,60]
[342110373,1731449465272,-36760.30635231,0.0003,2]
[342110374,1731449465505,-500.0,0.00022465,2]
[342110375,1731449465514,-500.0,0.00022739,2]
[342110376,1731449465524,-1805.789628,0.000252,2]
[342110377,1731449465533,-4940.38714744,0.0003,2]
[342110378,1731449465544,-2615.5,0.0003,2]
[342110379,1731449465560,-12846.96485853,0.0003,2]
[342110380,1731449465569,-300.0,0.0003,30]
[342110381,1731449465578,-4000.0,0.0003,2]
[342110382,1731449465587,-1000.0,0.0003,5]
[342110383,1731449465596,-13872.05528919,0.0003,30]
[342110384,1731449465607,-2485.48320165,0.0003,30]
[342110385,1731449465618,-3603.85206584,0.0003,30]
[342110386,1731449465628,-1000.0,0.0003,30]
[342110387,1731449465637,-19232.23359525,0.0003,60]
[342110388,1731449465647,-3307.9893659,0.0003,2]
[342110389,1731449465656,-30096.47299914,0.0003,3]
[342110391,1731449773206,161.931194,0.00013973,2]
[342110404,1731450161702,172.962446,0.00023836,120]
[342110407,1731450449707,162.480163,0.00013973,2]
[342110471,1731450632300,-493.28408333,0.00019728,2]
[342110472,1731450632312,-193.90893187,0.00019728,2]
[342110473,1731450632321,-171.16007024,0.000199,2]
[342110474,1731450632332,-300.0,0.00019928,2]
[342110475,1731450632342,-300.0,0.00019928,2]
[342110476,1731450632353,-511.84119666,0.00019929,2]
[342110477,1731450632366,-552.0,0.00019929,2]
[342110478,1731450632378,-633.90707799,0.00019929,2]
[342110505,1731450638329,-1051.4975635,0.00019362,2]
[342110506,1731450638342,-22887.50304315,0.00019929,2]
[342110507,1731450638351,-745.93715658,0.0002,2]
[342110522,1731450643360,-423.33367675,0.0002,2]
[342110523,1731450643370,-174.199803,0.00020123,2]
[342110524,1731450643380,-298.755901,0.00020861,2]
[342110525,1731450643389,-6199.52490202,0.000209,2]
[342110526,1731450643399,-941.52771096,0.00020927,2]
[342110527,1731450643407,-7312.42308522,0.00020927,3]
[342110528,1731450643419,-1520.78018174,0.00020927,3]
[342110530,1731450646344,-876.54,0.00020927,3]
[342110541,1731451202871,162.624953,0.00013973,2]
[342110587,1731451832440,-2638.03356978,0.00018,2]
[342110589,1731451832451,-3719.99083423,0.00018,2]
[342110615,1731451838593,-2884.2092254,0.00018,2]
[342110616,1731451838602,-227.273432,0.00018683,2]
[342110617,1731451838611,-300.0,0.00018931,2]
[342110618,1731451838620,-300.0,0.00018933,2]
[342110619,1731451838630,-2258.2203743,0.00018934,2]
[342110620,1731451838639,-859.3658,0.00019073,2]
[342110621,1731451838648,-859.3658,0.00019758,2]
[342110622,1731451838657,-5424.58428925,0.000199,2]
[342110623,1731451838666,-1169.27083333,0.0002,2]
[342110624,1731451838675,-152.40601173,0.0002,2]
[342110625,1731451838684,-2932.3653423,0.0002008,2]
[342110626,1731451838694,-859.3658,0.00020443,2]
[342110627,1731451838703,-420.0,0.00020639,2]
[342110628,1731451838712,-166.0,0.00020824,2]
[342110629,1731451838720,-152.0,0.00020925,2]
[342110630,1731451838731,-2173.29631601,0.00021,5]
[342110631,1731451838744,-5424.58428924,0.00021399,2]
[342110632,1731451838753,-212.1428121,0.00021452,2]
[342110633,1731451838762,-162.624953,0.00021661,2]
[342110634,1731451838771,-307.37,0.00021807,3]
[342110635,1731451838781,-855.69374811,0.00021816,2]
[342110636,1731451838791,-11267.81086769,0.00021817,2]
[342110637,1731451838809,-1723.31392129,0.00021817,2]
[342110651,1731451840433,-23753.60845097,0.00021817,2]
[342110652,1731451840442,-1000.0,0.00021817,2]
[342110653,1731451840452,-195.83200074,0.00021817,2]
[342110654,1731451840461,-3000.0,0.000219,2]
[342110655,1731451840470,-153.69,0.00021907,3]
[342110656,1731451840479,-461.08,0.00021907,3]
[342110657,1731451840488,-3000.0,0.0002191,2]
[342110658,1731451840497,-2773.51435398,0.00021916,2]
[342110659,1731451840507,-187.57650571,0.00021916,2]
[342110660,1731451840516,-178.87698713,0.00021916,2]
[342110661,1731451840525,-175.00282174,0.00021916,2]
[342110662,1731451840536,-324.59348957,0.00021916,2]
[342110663,1731451840545,-539.19389331,0.00021916,2]
[342110664,1731451840554,-187.84196973,0.00021916,2]
[342110665,1731451840564,-546.16827961,0.00021916,2]
[342110666,1731451840573,-500.0,0.00021916,2]
[342110667,1731451840582,-500.0,0.00021916,2]
[342110668,1731451840591,-253.21043272,0.00021916,2]
[342110669,1731451840600,-500.0,0.00021916,2]
[342110670,1731451840609,-500.0,0.00021916,2]
[342110671,1731451840618,-500.0,0.00021916,2]
[342110672,1731451840627,-312.91211988,0.00021916,2]
[342110673,1731451840636,-500.0,0.00021916,2]
[342110674,1731451840645,-500.0,0.00021916,2]
[342110675,1731451840654,-500.0,0.00021916,2]
[342110676,1731451840664,-500.0,0.00021916,2]
[342110677,1731451840674,-168.73028741,0.00021916,2]
[342110678,1731451840683,-500.0,0.00021917,2]
[342110679,1731451840694,-500.0,0.00021917,2]
[342110680,1731451840704,-529.82064874,0.00021917,2]
[342110681,1731451840714,-500.0,0.00021917,2]
[342110682,1731451840724,-633.25863205,0.00021917,2]
[342110683,1731451840735,-200.0,0.00021917,2]
[342110684,1731451840749,-500.0,0.00021917,2]
[342110685,1731451840759,-500.0,0.00021917,2]
[342110686,1731451840769,-500.0,0.00021917,2]
[342110687,1731451840779,-500.0,0.00021917,2]
[342110688,1731451840794,-500.0,0.00021917,2]
[342110689,1731451840803,-500.0,0.00021917,2]
[342110690,1731451840812,-500.0,0.00021917,2]
[342110691,1731451840823,-500.0,0.00021917,2]
[342110692,1731451840833,-504.95335718,0.00021917,2]
[342110693,1731451840842,-500.0,0.00021917,2]
[342110694,1731451840850,-299.49994792,0.00021917,2]
[342110695,1731451840859,-625.25911648,0.00021917,2]
[342110696,1731451840869,-500.0,0.00021917,2]
[342110697,1731451840878,-500.0,0.00021917,2]
[342110698,1731451840887,-500.0,0.00021917,2]
[342110699,1731451840897,-167.12033666,0.00021917,2]
[342110700,1731451840906,-500.0,0.00021917,2]
[342110701,1731451840915,-500.0,0.00021917,2]
[342110702,1731451840924,-500.0,0.00021917,2]
[342110703,1731451840934,-505.53260528,0.00021917,2]
[342110704,1731451840943,-500.0,0.00021917,2]
[342110705,1731451840951,-500.0,0.00021917,2]
[342110706,1731451840960,-500.0,0.00021917,2]
[342110707,1731451840969,-500.0,0.00021917,2]
[342110708,1731451840979,-503.57915245,0.00021917,2]
[342110709,1731451840988,-500.0,0.00021917,2]
[342110710,1731451840997,-500.0,0.00021917,2]
[342110711,1731451841005,-500.0,0.00021917,2]
[342110712,1731451841014,-513.89875513,0.00021917,2]
[342110713,1731451841023,-500.0,0.00021917,2]
[342110714,1731451841032,-500.0,0.00021917,2]
[342110715,1731451841043,-500.0,0.00021917,2]
[342110716,1731451841052,-224.03203094,0.00021917,2]
[342110717,1731451841060,-500.0,0.00021917,2]
[342110718,1731451841069,-500.0,0.00021917,2]
[342110719,1731451841078,-283.13259939,0.00021917,2]
[342110720,1731451841087,-500.0,0.00021917,2]
[342110721,1731451841096,-500.0,0.00021917,2]
[342110722,1731451841105,-165.3230218,0.00021917,2]
[342110723,1731451841114,-500.0,0.00021917,2]
[342110724,1731451841124,-500.0,0.00021917,2]
[342110725,1731451841132,-500.0,0.00021917,2]
[342110726,1731451841141,-500.0,0.00021917,2]
[342110727,1731451841150,-500.0,0.00021917,2]
[342110728,1731451841159,-500.0,0.00021917,2]
[342110729,1731451841169,-500.0,0.00021917,2]
[342110730,1731451841178,-500.0,0.00021917,2]
[342110731,1731451841188,-500.0,0.00021917,2]
[342110732,1731451841196,-500.0,0.00021917,2]
[342110733,1731451841205,-500.0,0.00021917,2]
[342110734,1731451841214,-500.0,0.00021917,2]
[342110735,1731451841223,-500.0,0.00021917,2]
[342110736,1731451841232,-278.39863832,0.00021917,2]
[342110737,1731451841241,-500.0,0.00021917,2]
[342110738,1731451841250,-500.0,0.00021917,2]
[342110739,1731451841259,-500.0,0.00021917,2]
[342110740,1731451841268,-500.0,0.00021917,2]
[342110741,1731451841277,-500.0,0.00021917,2]
[342110742,1731451841286,-308.93962679,0.00021917,2]
[342110770,1731451843459,-191.06037321,0.00021917,2]
[342110772,1731451843468,-500.0,0.00021917,2]
[342110774,1731451843477,-500.0,0.00021917,2]
[342110776,1731451843486,-500.0,0.00021917,2]
[342110778,1731451843495,-500.0,0.00021917,2]
[342110780,1731451843504,-167.81339127,0.00021917,2]
[342110782,1731451843514,-69.99143015,0.00021917,2]
[342110785,1731451843526,-433.10688537,0.00021917,2]
[342110787,1731451843535,-500.0,0.00021917,2]
[342110789,1731451843546,-500.0,0.00021917,2]
[342110791,1731451843554,-505.86750535,0.00021917,2]
[342110793,1731451843564,-500.0,0.00021917,2]
[342110795,1731451843573,-500.0,0.00021917,2]
[342110797,1731451843582,-500.0,0.00021917,2]
[342110799,1731451843591,-500.0,0.00021917,2]
[342110800,1731451843600,-500.0,0.00021917,2]
[342110802,1731451843609,-500.0,0.00021917,2]
[342110804,1731451843618,-500.0,0.00021917,2]
[342110805,1731451843627,-502.19834304,0.00021917,2]
[342110806,1731451843636,-500.0,0.00021917,2]
[342110807,1731451843645,-500.0,0.00021917,2]
[342110808,1731451843654,-500.0,0.00021917,2]
[342110809,1731451843662,-500.0,0.00021917,2]
[342110810,1731451843672,-502.06367428,0.00021917,2]
[342110811,1731451843681,-500.0,0.00021917,2]
[342110812,1731451843690,-500.0,0.00021917,2]
[342110813,1731451843699,-500.0,0.00021917,2]
[342110814,1731451843708,-500.0,0.00021917,2]
[342110815,1731451843717,-509.93883195,0.00021917,2]
[342110816,1731451843726,-69.55191714,0.00021917,2]
[342110817,1731451843739,-430.44808286,0.00021917,2]
[342110818,1731451843750,-500.0,0.00021917,2]
[342110820,1731451843759,-500.0,0.00021917,2]
[342110822,1731451843768,-500.0,0.00021917,2]
[342110824,1731451843778,-500.0,0.00021917,2]
[342110826,1731451843788,-500.0,0.00021917,2]
[342110828,1731451843797,-500.0,0.00021917,2]
[342110830,1731451843806,-629.09443447,0.00021917,2]
[342110832,1731451843817,-500.0,0.00021917,2]
[342110834,1731451843827,-500.0,0.00021917,2]
[342110836,1731451843836,-500.0,0.00021917,2]
[342110838,1731451843845,-500.0,0.00021917,2]
[342110840,1731451843854,-500.0,0.00021917,2]
[342110842,1731451843863,-500.0,0.00021917,2]
[342110844,1731451843872,-500.0,0.00021917,2]
[342110846,1731451843881,-500.0,0.00021917,2]
[342110848,1731451843890,-500.0,0.00021917,2]
[342110850,1731451843899,-500.0,0.00021917,2]
[342110852,1731451843909,-500.0,0.00021917,2]
[342110854,1731451843918,-508.47334144,0.00021917,2]
[342110856,1731451843926,-308.99934941,0.00021917,2]
[342110858,1731451843935,-503.3195008,0.00021917,2]
[342110860,1731451843944,-500.0,0.00021917,2]
[342110862,1731451843953,-500.0,0.00021917,2]
[342110864,1731451843961,-500.0,0.00021917,2]
[342110866,1731451843971,-500.0,0.00021917,2]
[342110867,1731451843979,-500.0,0.00021917,2]
[342110868,1731451843988,-500.0,0.00021917,2]
[342110869,1731451843997,-500.0,0.00021917,2]
[342110870,1731451844006,-500.0,0.00021917,2]
[342110872,1731451844016,-500.0,0.00021917,2]
[342110873,1731451844024,-507.79648618,0.00021917,2]
[342110874,1731451844034,-500.0,0.00021917,2]
[342110875,1731451844044,-500.0,0.00021917,2]
[342110876,1731451844053,-500.0,0.00021917,2]
[342110877,1731451844062,-500.0,0.00021917,2]
[342110878,1731451844071,-505.67016315,0.00021917,2]
[342110879,1731451844080,-500.0,0.00021917,2]
[342110880,1731451844090,-291.6045049,0.00021917,2]
[342110881,1731451844099,-309.80787854,0.00021917,2]
[342110882,1731451844109,-321.90576743,0.00021917,2]
[342110883,1731451844118,-500.0,0.00021917,2]
[342110884,1731451844127,-649.72046246,0.00021917,2]
[342110885,1731451844136,-37.56389303,0.00021917,2]
[342110920,1731452006744,-151.0,0.0002,2]
[342110937,1731452761160,158.975,0.0002887,120]
[342110940,1731452818589,163.257257,0.00013973,2]
[342110942,1731452988313,158.457,0.0002869,120]
[342110978,1731453032769,-453.59994012,0.00018265,2]
[342110981,1731453032781,-559.45774676,0.00018265,2]
[342110983,1731453032790,-163.14162324,0.0001845,2]
[342110985,1731453032802,-107.27677476,0.0001845,2]
[342110987,1731453032811,-300.0,0.00018559,2]
[342110989,1731453032820,-300.0,0.00018559,2]
[342110991,1731453032830,-11079.85473985,0.0001856,2]
[342110997,1731453032875,-13.50730415,0.0001856,2]
[342110999,1731453032884,-1007.3167114,0.00018746,2]
[342111001,1731453032893,-250.0,0.00018828,2]
[342111003,1731453032903,-849.8162796,0.00018857,2]
[342111005,1731453032912,-512.24858311,0.00018987,2]
[342111025,1731453038791,-864.68131979,0.00018555,2]
[342111029,1731453038874,-2135.31868021,0.00018555,2]
[342111030,1731453038884,-1800.76703389,0.00018987,2]
[342111031,1731453038893,-174.199803,0.00019178,2]
[342111032,1731453038903,-2313.015617,0.00019672,2]
[342111033,1731453038912,-187.28,0.0001989,2]
[342111034,1731453038922,-1018.27083333,0.0002,2]
[342111035,1731453038931,-1557.0,0.0002,2]
[342111036,1731453038940,-1169.27083333,0.0002,2]
[342111037,1731453038949,-1382.0,0.0002,2]
[342111038,1731453038958,-222.369877,0.00020096,2]
[342111040,1731453038967,-229.80432334,0.00020157,2]
[342111041,1731453038978,-70.4902362,0.00020238,2]
[342111042,1731453038990,-349.5097638,0.00020238,2]
[342111043,1731453038999,-3000.36842803,0.00020315,2]
[342111046,1731453040587,-328.33904548,0.00020315,2]
[342111047,1731453040600,-1865.15981381,0.00020315,2]
[342111048,1731453040610,-2313.015617,0.00020357,2]
[342111050,1731453040619,-420.0,0.00020415,2]
[342111051,1731453040628,-500.0,0.00020567,2]
[342111053,1731453040638,-502.24799457,0.00020567,2]
[342111055,1731453040648,-500.0,0.00020567,2]
[342111057,1731453040657,-500.0,0.00020567,2]
[342111059,1731453040667,-500.0,0.00020567,2]
[342111061,1731453040676,-500.0,0.00020567,2]
[342111062,1731453040685,-176.853412,0.00020644,2]
[342111063,1731453040695,-500.0,0.0002065,2]
[342111064,1731453040704,-153.68,0.00020823,3]
[342111065,1731453040713,-461.08,0.00020823,3]
[342111066,1731453040722,-976.60448125,0.00020833,2]
[342111067,1731453040732,-360.51125,0.00021063,2]
[342111068,1731453040741,-634.50137473,0.00021198,2]
[342111069,1731453040750,-163.257257,0.00021209,2]
[342111070,1731453040760,-1382.0,0.000216,4]
[342111071,1731453040770,-151.9260413,0.00021644,2]
[342111072,1731453040779,-292.77531584,0.00021716,2]
[342111073,1731453040789,-500.0,0.00021716,2]
[342111074,1731453040799,-500.0,0.00021716,2]
[342111075,1731453040925,-500.0,0.00021716,2]
[342111076,1731453040935,-500.0,0.00021716,2]
[342111077,1731453040944,-500.0,0.00021716,2]
[342111078,1731453040954,-500.0,0.00021716,2]
[342111079,1731453040963,-500.0,0.00021716,2]
[342111080,1731453040974,-500.0,0.00021716,2]
[342111081,1731453040983,-500.0,0.00021716,2]
[342111082,1731453040992,-500.0,0.00021716,2]
[342111083,1731453041001,-500.0,0.00021716,2]
[342111084,1731453041013,-500.0,0.00021716,2]
[342111085,1731453041023,-500.0,0.00021716,2]
[342111086,1731453041032,-500.0,0.00021716,2]
[342111087,1731453041042,-500.0,0.00021716,2]
[342111088,1731453041052,-500.0,0.00021716,2]
[342111089,1731453041061,-500.0,0.00021716,2]
[342111090,1731453041070,-500.0,0.00021716,2]
[342111091,1731453041080,-500.0,0.00021716,2]
[342111092,1731453041090,-542.53447213,0.00021716,2]
[342111093,1731453041099,-500.0,0.00021716,2]
[342111094,1731453041108,-349.57034241,0.00021716,2]
[342111095,1731453041117,-500.0,0.00021716,2]
[342111096,1731453041127,-500.0,0.00021716,2]
[342111097,1731453041139,-500.0,0.00021716,2]
[342111098,1731453041149,-500.0,0.00021716,2]
[342111099,1731453041158,-500.0,0.00021716,2]
[342111100,1731453041167,-500.0,0.00021716,2]
[342111101,1731453041178,-500.0,0.00021716,2]
[342111102,1731453041188,-223.24101009,0.00021716,2]
[342111103,1731453041197,-500.0,0.00021716,2]
[342111104,1731453041209,-500.0,0.00021716,2]
[342111105,1731453041218,-500.0,0.00021716,2]
[342111106,1731453041229,-500.0,0.00021716,2]
[342111107,1731453041239,-500.0,0.00021716,2]
[342111108,1731453041248,-500.0,0.00021716,2]
[342111109,1731453041258,-500.0,0.00021716,2]
[342111110,1731453041267,-500.0,0.00021716,2]
[342111111,1731453041276,-500.0,0.00021716,2]
[342111112,1731453041285,-500.0,0.00021716,2]
[342111113,1731453041295,-500.0,0.00021716,2]
[342111114,1731453041305,-500.0,0.00021716,2]
[342111115,1731453041314,-23455.22404727,0.00021717,2]
[342111116,1731453041323,-5193.86728727,0.00021755,2]
[342111117,1731453041332,-1000.0,0.00021817,2]
[342111118,1731453041341,-204.82516867,0.00021817,2]
[342111119,1731453041350,-3000.0,0.000219,2]
[342111120,1731453041360,-3000.0,0.0002191,2]
[342111121,1731453041369,-285.88061468,0.00021916,2]
[342111122,1731453041378,-377.43572532,0.00021916,2]
[342111123,1731453041387,-155.59026423,0.00021916,2]
[342111124,1731453041396,-500.0,0.00021917,2]
[342111125,1731453041406,-500.0,0.00021917,2]
[342111126,1731453041416,-500.0,0.00021917,2]
[342111127,1731453041425,-500.0,0.00021917,2]
[342111128,1731453041434,-500.0,0.00021917,2]
[342111129,1731453041443,-500.0,0.00021917,2]
[342111130,1731453041453,-500.0,0.00021917,2]
[342111131,1731453041462,-272.75383053,0.00021917,2]
[342111132,1731453041471,-500.0,0.00021917,2]
[342111133,1731453041482,-500.0,0.00021917,2]
[342111134,1731453041492,-500.0,0.00021917,2]
[342111135,1731453041501,-500.0,0.00021917,2]
[342111136,1731453041510,-500.0,0.00021917,2]
[342111137,1731453041519,-462.43610697,0.00021917,2]
[342111138,1731453041529,-500.0,0.00021917,2]
[342111139,1731453041538,-500.0,0.00021917,2]
[342111140,1731453041547,-500.0,0.00021917,2]
[342111141,1731453041556,-500.0,0.00021917,2]
[342111142,1731453041565,-500.0,0.00021917,2]
[342111143,1731453041574,-500.0,0.00021917,2]
[342111144,1731453041583,-500.0,0.00021917,2]
[342111145,1731453041592,-500.0,0.00021917,2]
[342111146,1731453041601,-500.0,0.00021917,2]
[342111147,1731453041610,-500.0,0.00021917,2]
[342111148,1731453041619,-500.0,0.00021917,2]
[342111149,1731453041628,-500.0,0.00021917,2]
[342111150,1731453041638,-500.0,0.00021917,2]
[342111151,1731453041647,-505.9719757,0.00021917,2]
[342111152,1731453041657,-500.0,0.00021917,2]
[342111153,1731453041666,-500.0,0.00021917,2]
[342111154,1731453041675,-500.0,0.00021917,2]
[342111155,1731453041685,-500.0,0.00021917,2]
[342111156,1731453041695,-500.0,0.00021917,2]
[342111157,1731453041704,-499.28979392,0.00021917,2]
[342111158,1731453041714,-500.0,0.00021917,2]
[342111159,1731453041723,-500.0,0.00021917,2]
[342111160,1731453041735,-255.78117144,0.00021917,2]
[342111161,1731453041745,-500.0,0.00021917,2]
[342111162,1731453041754,-500.0,0.00021917,2]
[342111163,1731453041764,-500.0,0.00021917,2]
[342111164,1731453041773,-500.0,0.00021917,2]
[342111165,1731453041782,-500.0,0.00021917,2]
[342111166,1731453041791,-500.0,0.00021917,2]
[342111167,1731453041801,-500.0,0.00021917,2]
[342111168,1731453041810,-500.0,0.00021917,2]
[342111169,1731453041819,-500.0,0.00021917,2]
[342111170,1731453041829,-500.0,0.00021917,2]
[342111171,1731453041838,-500.0,0.00021917,2]
[342111172,1731453041847,-500.0,0.00021917,2]
[342111173,1731453041857,-516.91700438,0.00021917,2]
[342111174,1731453041866,-507.58483009,0.00021917,2]
[342111175,1731453041875,-500.0,0.00021917,2]
[342111176,1731453041884,-500.0,0.00021917,2]
[342111177,1731453041893,-597.91,0.00021917,2]
[342111178,1731453041902,-500.0,0.00021917,2]
[342111179,1731453041911,-500.0,0.00021917,2]
[342111180,1731453041921,-500.0,0.00021917,2]
[342111181,1731453041930,-500.0,0.00021917,2]
[342111182,1731453041939,-500.0,0.00021917,2]
[342111183,1731453041948,-500.0,0.00021917,2]
[342111184,1731453041958,-500.0,0.00021917,2]
[342111185,1731453041967,-500.0,0.00021917,2]
[342111186,1731453041976,-501.72671402,0.00021917,2]
[342111187,1731453041986,-1000.0,0.00021917,2]
[342111188,1731453041995,-500.0,0.00021917,2]
[342111189,1731453042003,-500.0,0.00021917,2]
[342111190,1731453042014,-518.72645147,0.00021917,2]
[342111191,1731453042024,-500.0,0.00021917,2]
[342111192,1731453042034,-500.0,0.00021917,2]
[342111193,1731453042043,-500.0,0.00021917,2]
[342111194,1731453042052,-500.0,0.00021917,2]
[342111195,1731453042062,-500.0,0.00021917,2]
[342111196,1731453042072,-516.75084509,0.00021917,2]
[342111197,1731453042081,-417.42615058,0.00021917,2]
[342111198,1731453042091,-500.0,0.00021917,2]
[342111199,1731453042100,-500.0,0.00021917,2]
[342111200,1731453042110,-500.0,0.00021917,2]
[342111201,1731453042119,-592.52911166,0.00021917,2]
[342111202,1731453042130,-300.0,0.00021917,2]
[342111203,1731453042139,-510.07394193,0.00021917,2]
[342111204,1731453042148,-500.0,0.00021917,2]
[342111205,1731453042157,-500.0,0.00021917,2]
[342111206,1731453042167,-527.59144512,0.00021917,2]
[342111207,1731453042175,-500.0,0.00021917,2]
[342111208,1731453042185,-500.0,0.00021917,2]
[342111209,1731453042194,-509.87230151,0.00021917,2]
[342111210,1731453042203,-500.0,0.00021917,2]
[342111211,1731453042212,-500.0,0.00021917,2]
[342111212,1731453042221,-500.0,0.00021917,2]
[342111213,1731453042230,-500.0,0.00021917,2]
[342111214,1731453042239,-500.0,0.00021917,2]
[342111215,1731453042249,-500.0,0.00021917,2]
[342111216,1731453042258,-500.0,0.00021917,2]
[342111217,1731453042267,-565.77379087,0.00021917,2]
[342111218,1731453042276,-500.0,0.00021917,2]
[342111219,1731453042285,-500.0,0.00021917,2]
[342111220,1731453042294,-500.0,0.00021917,2]
[342111221,1731453042303,-500.0,0.00021917,2]
[342111222,1731453042312,-500.0,0.00021917,2]
[342111223,1731453042322,-500.0,0.00021917,2]
[342111224,1731453042331,-500.0,0.00021917,2]
[342111225,1731453042340,-500.0,0.00021917,2]
[342111226,1731453042349,-511.14394439,0.00021917,2]
[342111227,1731453042358,-500.0,0.00021917,2]
[342111228,1731453042368,-500.0,0.00021917,2]